[Event "Titled Tuesday Blitz December 20 Late 2022"]
[White "Bolanos, Fernando"]
[Black "Carbone, Diego"]
[WhiteFideId "3304094"]
[BlackFideId "3002179"]
[WhiteElo "2166"]
[BlackElo "2266"]
[Result "0-1"]
[Round "10"]
[TimeControl "180+1"]
[Date "2022.12.21"]
[WhiteClock "0:00:01"]
[BlackClock "0:00:03"]

1. e4 {[%clk 0:02:51]}  e5 {[%clk 0:02:59]} 2. Nf3 {[%clk 0:02:51]}  Nc6 {[%clk 0:03:00]} 3. Bb5 {[%clk 0:02:51]}  a6 {[%clk 0:03:00]} 4. Ba4 {[%clk 0:02:51]}  Nf6 {[%clk 0:03:00]} 5. O-O {[%clk 0:02:51]}  Nxe4 {[%clk 0:03:00]} 6. d4 {[%clk 0:02:50]}  Be7 {[%clk 0:03:00]} 7. Re1 {[%clk 0:02:47]}  b5 {[%clk 0:03:00]} 8. Bb3 {[%clk 0:02:46]}  d5 {[%clk 0:03:00]} 9. dxe5 {[%clk 0:02:43]}  Be6 {[%clk 0:03:00]} 10. c3 {[%clk 0:02:40]}  O-O {[%clk 0:02:59]} 11. Nbd2 {[%clk 0:02:35]}  Nc5 {[%clk 0:02:58]} 12. Bc2 {[%clk 0:02:35]}  d4 {[%clk 0:02:57]} 13. cxd4 {[%clk 0:02:34]}  Nxd4 {[%clk 0:02:58]} 14. Nxd4 {[%clk 0:02:34]}  Qxd4 {[%clk 0:02:59]} 15. Nf3 {[%clk 0:02:33]}  Qxd1 {[%clk 0:02:58]} 16. Rxd1 {[%clk 0:02:34]}  Rfd8 {[%clk 0:02:58]} 17. Bg5 {[%clk 0:02:33]}  Rxd1+ {[%clk 0:02:04]} 18. Rxd1 {[%clk 0:02:33]}  Kf8 {[%clk 0:01:55]} 19. b3 {[%clk 0:01:22]}  h6 {[%clk 0:01:53]} 20. Bxe7+ {[%clk 0:01:21]}  Kxe7 {[%clk 0:01:54]} 21. Nd4 {[%clk 0:01:21]}  Bd7 {[%clk 0:01:42]} 22. f4 {[%clk 0:01:12]}  Ne6 {[%clk 0:01:39]} 23. f5 {[%clk 0:00:50]}  Nxd4 {[%clk 0:01:37]} 24. Rxd4 {[%clk 0:00:51]}  c5 {[%clk 0:01:35]} 25. Rd2 {[%clk 0:00:50]}  Rc8 {[%clk 0:01:29]} 26. Kf2 {[%clk 0:00:49]}  c4 {[%clk 0:01:22]} 27. g4 {[%clk 0:00:42]}  Bc6 {[%clk 0:01:19]} 28. bxc4 {[%clk 0:00:40]}  bxc4 {[%clk 0:01:20]} 29. Ke3 {[%clk 0:00:38]}  Rb8 {[%clk 0:01:01]} 30. Be4 {[%clk 0:00:26]}  Bxe4 {[%clk 0:00:52]} 31. Kxe4 {[%clk 0:00:26]}  c3 {[%clk 0:00:53]} 32. Rc2 {[%clk 0:00:24]}  Rb4+ {[%clk 0:00:52]} 33. Kd5 {[%clk 0:00:20]}  Rxg4 {[%clk 0:00:41]} 34. Rxc3 {[%clk 0:00:19]}  Rg2 {[%clk 0:00:42]} 35. Rc7+ {[%clk 0:00:19]}  Ke8 {[%clk 0:00:42]} 36. a4 {[%clk 0:00:05]}  Rxh2 {[%clk 0:00:41]} 37. Ra7 {[%clk 0:00:05]}  Rd2+ {[%clk 0:00:37]} 38. Ke4 {[%clk 0:00:05]}  Re2+ {[%clk 0:00:34]} 39. Kf4 {[%clk 0:00:04]}  Rf2+ {[%clk 0:00:33]} 40. Kg4 {[%clk 0:00:03]}  Re2 {[%clk 0:00:19]} 41. Kf4 {[%clk 0:00:04]}  Rf2+ {[%clk 0:00:16]} 42. Kg4 {[%clk 0:00:04]}  h5+ {[%clk 0:00:13]} 43. Kg5 {[%clk 0:00:05]}  h4 {[%clk 0:00:13]} 44. Rxa6 {[%clk 0:00:03]}  h3 {[%clk 0:00:12]} 45. Ra8+ {[%clk 0:00:04]}  Ke7 {[%clk 0:00:11]} 46. Rh8 {[%clk 0:00:05]}  h2 {[%clk 0:00:10]} 47. a5 {[%clk 0:00:04]}  f6+ {[%clk 0:00:04]} 48. exf6+ {[%clk 0:00:04]}  gxf6+ {[%clk 0:00:05]} 49. Kg4 {[%clk 0:00:03]}  Ra2 {[%clk 0:00:05]} 50. Rh7+ {[%clk 0:00:01]}  Kd6 {[%clk 0:00:05]} 51. Kg3 {[%clk 0:00:01]}  Ke5 {[%clk 0:00:03]} 0-1


[Site "https://www.chess.com"]

[Event "Titled Tuesday Blitz December 20 Late 2022"]
[White "Boros, Denes"]
[Black "Gubajdullin, Alexei"]
[WhiteFideId "722340"]
[BlackFideId "4141202"]
[WhiteElo "2464"]
[BlackElo "2251"]
[Result "0-1"]
[Round "10"]
[TimeControl "180+1"]
[Date "2022.12.20"]
[WhiteClock "0:00:03"]
[BlackClock "0:00:24"]

1. d4 {[%clk 0:02:42]}  Nf6 {[%clk 0:02:52]} 2. Nc3 {[%clk 0:02:41]}  g6 {[%clk 0:02:50]} 3. e4 {[%clk 0:02:40]}  d6 {[%clk 0:02:48]} 4. Be2 {[%clk 0:02:41]}  Bg7 {[%clk 0:02:44]} 5. g4 {[%clk 0:02:41]}  c5 {[%clk 0:02:23]} 6. dxc5 {[%clk 0:02:23]}  Qa5 {[%clk 0:02:18]} 7. cxd6 {[%clk 0:02:10]}  Nxe4 {[%clk 0:02:13]} 8. Bd2 {[%clk 0:02:11]}  Nxc3 {[%clk 0:01:58]} 9. bxc3 {[%clk 0:02:10]}  Qd5 {[%clk 0:01:52]} 10. Bf3 {[%clk 0:02:02]}  Qxd6 {[%clk 0:01:47]} 11. Ne2 {[%clk 0:02:01]}  Nc6 {[%clk 0:01:43]} 12. Bf4 {[%clk 0:01:56]}  Bxc3+ {[%clk 0:01:38]} 13. Kf1 {[%clk 0:01:43]}  Qf6 {[%clk 0:01:38]} 14. Rb1 {[%clk 0:01:35]}  Be5 {[%clk 0:01:34]} 15. Qd2 {[%clk 0:01:12]}  g5 {[%clk 0:01:29]} 16. Bxc6+ {[%clk 0:01:07]}  Qxc6 {[%clk 0:01:23]} 17. Bxe5 {[%clk 0:01:07]}  Qxh1+ {[%clk 0:01:22]} 18. Ng1 {[%clk 0:01:08]}  f6 {[%clk 0:01:06]} 19. f3 {[%clk 0:00:53]}  fxe5 {[%clk 0:01:01]} 20. Re1 {[%clk 0:00:24]}  Rf8 {[%clk 0:00:51]} 21. Qxg5 {[%clk 0:00:16]}  Rxf3+ {[%clk 0:00:46]} 22. Ke2 {[%clk 0:00:17]}  Qg2+ {[%clk 0:00:45]} 23. Kd1 {[%clk 0:00:16]}  Bxg4 {[%clk 0:00:45]} 24. Qg8+ {[%clk 0:00:11]}  Kd7 {[%clk 0:00:43]} 25. Qd5+ {[%clk 0:00:11]}  Ke8 {[%clk 0:00:31]} 26. Kc1 {[%clk 0:00:10]}  Rc8 {[%clk 0:00:27]} 27. Qg8+ {[%clk 0:00:02]}  Rf8 {[%clk 0:00:26]} 28. Qb3 {[%clk 0:00:03]}  Bf5 {[%clk 0:00:25]} 29. Ne2 {[%clk 0:00:02]}  Qf2 {[%clk 0:00:25]} 30. Kd1 {[%clk 0:00:03]}  Bxc2+ {[%clk 0:00:24]} 0-1


[Site "https://www.chess.com"]

[Event "Titled Tuesday Blitz December 20 Late 2022"]
[White "Bryakin, Mikhail"]
[Black "Chigaev, Maksim"]
[WhiteFideId "4165314"]
[BlackFideId "4108116"]
[WhiteElo "2391"]
[BlackElo "2542"]
[Result "0-1"]
[Round "10"]
[TimeControl "180+1"]
[Date "2022.12.20"]
[WhiteClock "0:00:05"]
[BlackClock "0:00:03"]

1. Nf3 {[%clk 0:02:53]}  Nf6 {[%clk 0:03:00]} 2. b3 {[%clk 0:02:52]}  g6 {[%clk 0:02:57]} 3. Bb2 {[%clk 0:02:52]}  c5 {[%clk 0:02:58]} 4. c4 {[%clk 0:02:52]}  Bg7 {[%clk 0:02:58]} 5. g3 {[%clk 0:02:52]}  d6 {[%clk 0:02:58]} 6. Bg2 {[%clk 0:02:52]}  O-O {[%clk 0:02:57]} 7. O-O {[%clk 0:02:53]}  e5 {[%clk 0:02:57]} 8. Nc3 {[%clk 0:02:45]}  Nc6 {[%clk 0:02:58]} 9. d3 {[%clk 0:02:44]}  h6 {[%clk 0:02:58]} 10. Nd2 {[%clk 0:02:38]}  Be6 {[%clk 0:02:59]} 11. e4 {[%clk 0:02:35]}  Nd7 {[%clk 0:02:42]} 12. Nd5 {[%clk 0:02:33]}  Nd4 {[%clk 0:02:35]} 13. h3 {[%clk 0:02:25]}  a6 {[%clk 0:02:32]} 14. Nf3 {[%clk 0:02:22]}  b5 {[%clk 0:02:16]} 15. Nxd4 {[%clk 0:02:19]}  cxd4 {[%clk 0:02:16]} 16. Ba3 {[%clk 0:02:16]}  Nc5 {[%clk 0:01:49]} 17. Bxc5 {[%clk 0:02:13]}  dxc5 {[%clk 0:01:49]} 18. f4 {[%clk 0:02:08]}  Bxd5 {[%clk 0:01:44]} 19. cxd5 {[%clk 0:02:02]}  Qd6 {[%clk 0:01:38]} 20. f5 {[%clk 0:02:00]}  h5 {[%clk 0:01:37]} 21. g4 {[%clk 0:01:57]}  Bh6 {[%clk 0:01:02]} 22. gxh5 {[%clk 0:01:46]}  Be3+ {[%clk 0:00:46]} 23. Kh1 {[%clk 0:01:45]}  g5 {[%clk 0:00:47]} 24. Qg4 {[%clk 0:01:08]}  f6 {[%clk 0:00:44]} 25. h6 {[%clk 0:01:00]}  Kh8 {[%clk 0:00:44]} 26. Bf3 {[%clk 0:00:55]}  Rac8 {[%clk 0:00:41]} 27. Rab1 {[%clk 0:00:54]}  Rf7 {[%clk 0:00:35]} 28. a4 {[%clk 0:00:32]}  Rh7 {[%clk 0:00:27]} 29. axb5 {[%clk 0:00:32]}  axb5 {[%clk 0:00:28]} 30. Ra1 {[%clk 0:00:31]}  Rxh6 {[%clk 0:00:28]} 31. Kg2 {[%clk 0:00:32]}  Bf4 {[%clk 0:00:25]} 32. Be2 {[%clk 0:00:18]}  Rh4 {[%clk 0:00:24]} 33. Qf3 {[%clk 0:00:18]}  Rc7 {[%clk 0:00:18]} 34. Qf2 {[%clk 0:00:18]}  Kg7 {[%clk 0:00:13]} 35. Bg4 {[%clk 0:00:17]}  Rh8 {[%clk 0:00:13]} 36. Ra5 {[%clk 0:00:17]}  c4 {[%clk 0:00:12]} 37. bxc4 {[%clk 0:00:13]}  bxc4 {[%clk 0:00:13]} 38. dxc4 {[%clk 0:00:12]}  Rxc4 {[%clk 0:00:13]} 39. Rfa1 {[%clk 0:00:13]}  Rhc8 {[%clk 0:00:13]} 40. Ra7+ {[%clk 0:00:13]}  R8c7 {[%clk 0:00:12]} 41. Qe2 {[%clk 0:00:11]}  Rc3 {[%clk 0:00:06]} 42. Qd1 {[%clk 0:00:05]}  Qd7 {[%clk 0:00:05]} 43. R7a2 {[%clk 0:00:03]}  d3 {[%clk 0:00:05]} 44. h4 {[%clk 0:00:03]}  Rc2+ {[%clk 0:00:05]} 45. Kf1 {[%clk 0:00:03]}  Rc1 {[%clk 0:00:03]} 46. Rxc1 {[%clk 0:00:02]}  Rxc1 {[%clk 0:00:04]} 47. hxg5 {[%clk 0:00:03]}  fxg5 {[%clk 0:00:03]} 48. Ra3 {[%clk 0:00:03]}  Rxd1+ {[%clk 0:00:03]} 49. Bxd1 {[%clk 0:00:03]}  Qb5 {[%clk 0:00:03]} 50. Ra7+ {[%clk 0:00:04]}  Kf6 {[%clk 0:00:03]} 51. d6 {[%clk 0:00:05]}  d2+ {[%clk 0:00:03]} 0-1


[Site "https://www.chess.com"]

[Event "Titled Tuesday Blitz December 20 Late 2022"]
[White "Curtis, John"]
[Black "Battlecruiser_Operational"]
[WhiteFideId "3200256"]
[WhiteElo "2203"]
[BlackElo "2413"]
[Result "1-0"]
[Round "10"]
[TimeControl "180+1"]
[Date "2022.12.21"]
[WhiteClock "0:00:45"]
[BlackClock "0:00:03"]

1. e4 {[%clk 0:03:00]}  c5 {[%clk 0:02:59]} 2. Nf3 {[%clk 0:03:00]}  Nc6 {[%clk 0:02:59]} 3. Bb5 {[%clk 0:02:58]}  e6 {[%clk 0:02:54]} 4. Bxc6 {[%clk 0:02:55]}  bxc6 {[%clk 0:02:55]} 5. e5 {[%clk 0:02:55]}  Ne7 {[%clk 0:02:53]} 6. O-O {[%clk 0:02:51]}  Ng6 {[%clk 0:02:52]} 7. Re1 {[%clk 0:02:51]}  Be7 {[%clk 0:02:51]} 8. b3 {[%clk 0:02:50]}  O-O {[%clk 0:02:50]} 9. Bb2 {[%clk 0:02:50]}  f6 {[%clk 0:02:44]} 10. Na3 {[%clk 0:02:45]}  fxe5 {[%clk 0:02:34]} 11. Nxe5 {[%clk 0:02:45]}  Nxe5 {[%clk 0:02:31]} 12. Bxe5 {[%clk 0:02:43]}  d6 {[%clk 0:02:31]} 13. Bb2 {[%clk 0:02:38]}  e5 {[%clk 0:02:30]} 14. Nc4 {[%clk 0:02:30]}  Be6 {[%clk 0:02:29]} 15. d3 {[%clk 0:02:30]}  Qe8 {[%clk 0:02:18]} 16. Qe2 {[%clk 0:02:15]}  Qg6 {[%clk 0:02:09]} 17. Ne3 {[%clk 0:02:02]}  Rf4 {[%clk 0:02:01]} 18. g3 {[%clk 0:02:01]}  Rf7 {[%clk 0:01:54]} 19. Ng2 {[%clk 0:02:00]}  Raf8 {[%clk 0:01:52]} 20. f4 {[%clk 0:01:59]}  Bg4 {[%clk 0:01:24]} 21. Qe4 {[%clk 0:01:53]}  Qxe4 {[%clk 0:01:05]} 22. dxe4 {[%clk 0:01:53]}  exf4 {[%clk 0:00:57]} 23. Nxf4 {[%clk 0:01:47]}  Bg5 {[%clk 0:00:29]} 24. e5 {[%clk 0:01:28]}  d5 {[%clk 0:00:19]} 25. Ba3 {[%clk 0:01:17]}  Bxf4 {[%clk 0:00:17]} 26. gxf4 {[%clk 0:01:16]}  Rxf4 {[%clk 0:00:17]} 27. Bxc5 {[%clk 0:01:16]}  Re8 {[%clk 0:00:15]} 28. Bxa7 {[%clk 0:01:11]}  Re4 {[%clk 0:00:12]} 29. Rxe4 {[%clk 0:01:10]}  dxe4 {[%clk 0:00:13]} 30. Bd4 {[%clk 0:01:10]}  Rd8 {[%clk 0:00:09]} 31. c3 {[%clk 0:01:10]}  Kf7 {[%clk 0:00:08]} 32. Kf2 {[%clk 0:01:09]}  Ke6 {[%clk 0:00:08]} 33. Ke3 {[%clk 0:01:09]}  Bf3 {[%clk 0:00:06]} 34. Rg1 {[%clk 0:01:08]}  g6 {[%clk 0:00:06]} 35. a4 {[%clk 0:01:04]}  c5 {[%clk 0:00:06]} 36. Bxc5 {[%clk 0:01:01]}  Rd3+ {[%clk 0:00:06]} 37. Kf4 {[%clk 0:01:01]}  Rxc3 {[%clk 0:00:06]} 38. b4 {[%clk 0:01:01]}  Ra3 {[%clk 0:00:05]} 39. a5 {[%clk 0:01:00]}  Ra4 {[%clk 0:00:04]} 40. Bd6 {[%clk 0:00:58]}  Kd7 {[%clk 0:00:01]} 41. Rc1 {[%clk 0:00:58]}  Ke6 {[%clk 0:00:01]} 42. Rc7 {[%clk 0:00:57]}  h6 {[%clk 0:00:02]} 43. Re7+ {[%clk 0:00:56]}  Kd5 {[%clk 0:00:02]} 44. Rh7 {[%clk 0:00:55]}  g5+ {[%clk 0:00:02]} 45. Kg3 {[%clk 0:00:54]}  Bd1 {[%clk 0:00:02]} 46. Rxh6 {[%clk 0:00:54]}  e3 {[%clk 0:00:03]} 47. Bc5 {[%clk 0:00:48]}  e2 {[%clk 0:00:03]} 48. Bf2 {[%clk 0:00:49]}  Kxe5 {[%clk 0:00:03]} 49. Rb6 {[%clk 0:00:46]}  Kd5 {[%clk 0:00:02]} 50. Rb5+ {[%clk 0:00:46]}  Kc4 {[%clk 0:00:03]} 51. Rxg5 {[%clk 0:00:46]}  Kxb4 {[%clk 0:00:03]} 52. Be1+ {[%clk 0:00:46]}  Kc4 {[%clk 0:00:03]} 53. h4 {[%clk 0:00:46]}  Kd3 {[%clk 0:00:03]} 54. Rd5+ {[%clk 0:00:45]}  Ke4 {[%clk 0:00:03]} 55. Rg5 {[%clk 0:00:45]} 1-0


[Site "https://www.chess.com"]

[Event "Titled Tuesday Blitz December 20 Late 2022"]
[White "D`Arruda, Ricardo D."]
[Black "Bach, Matthias"]
[WhiteFideId "100692"]
[BlackFideId "4603168"]
[WhiteElo "2430"]
[BlackElo "2165"]
[Result "1-0"]
[Round "10"]
[TimeControl "180+1"]
[Date "2022.12.21"]
[WhiteClock "0:00:26"]
[BlackClock "0:00:21"]

1. d4 {[%clk 0:03:00]}  Nf6 {[%clk 0:02:53]} 2. Nf3 {[%clk 0:02:59]}  c5 {[%clk 0:02:53]} 3. d5 {[%clk 0:02:59]}  e6 {[%clk 0:02:52]} 4. Nc3 {[%clk 0:02:58]}  g6 {[%clk 0:02:50]} 5. e4 {[%clk 0:02:55]}  Bg7 {[%clk 0:02:47]} 6. d6 {[%clk 0:02:54]}  O-O {[%clk 0:02:41]} 7. Bf4 {[%clk 0:02:39]}  Nc6 {[%clk 0:02:35]} 8. Bb5 {[%clk 0:02:33]}  e5 {[%clk 0:02:32]} 9. Bg5 {[%clk 0:02:26]}  Re8 {[%clk 0:02:27]} 10. Nd5 {[%clk 0:02:21]}  Nd4 {[%clk 0:02:17]} 11. Nxd4 {[%clk 0:02:05]}  cxd4 {[%clk 0:02:08]} 12. O-O {[%clk 0:02:01]}  h6 {[%clk 0:01:58]} 13. Bxf6 {[%clk 0:01:58]}  Bxf6 {[%clk 0:01:58]} 14. Nc7 {[%clk 0:01:59]}  Re6 {[%clk 0:01:41]} 15. Nxa8 {[%clk 0:01:53]}  Rxd6 {[%clk 0:01:40]} 16. f4 {[%clk 0:01:40]}  b6 {[%clk 0:01:29]} 17. fxe5 {[%clk 0:01:39]}  Bxe5 {[%clk 0:01:28]} 18. Bc4 {[%clk 0:01:38]}  Re6 {[%clk 0:01:19]} 19. Bxe6 {[%clk 0:01:34]}  dxe6 {[%clk 0:01:16]} 20. Qf3 {[%clk 0:01:22]}  f6 {[%clk 0:01:15]} 21. c3 {[%clk 0:01:07]}  Bb7 {[%clk 0:01:09]} 22. Rad1 {[%clk 0:00:55]}  Bxa8 {[%clk 0:01:00]} 23. Qg4 {[%clk 0:00:52]}  Kf7 {[%clk 0:00:55]} 24. cxd4 {[%clk 0:00:50]}  Bxd4+ {[%clk 0:00:54]} 25. Kh1 {[%clk 0:00:50]}  e5 {[%clk 0:00:53]} 26. Rc1 {[%clk 0:00:48]}  Bb7 {[%clk 0:00:45]} 27. Rc2 {[%clk 0:00:31]}  h5 {[%clk 0:00:43]} 28. Qe2 {[%clk 0:00:27]}  Qd6 {[%clk 0:00:23]} 29. Rfc1 {[%clk 0:00:27]}  Kg7 {[%clk 0:00:21]} 30. Rc7+ {[%clk 0:00:26]} 1-0


[Site "https://www.chess.com"]

[Event "Titled Tuesday Blitz December 20 Late 2022"]
[White "De Souza, Cristiano Gomes"]
[Black "Mikhalsky, Vladimir"]
[WhiteFideId "2151758"]
[BlackFideId "14144352"]
[WhiteElo "2068"]
[BlackElo "2272"]
[Result "0-1"]
[Round "10"]
[TimeControl "180+1"]
[Date "2022.12.21"]
[WhiteClock "0:02:08"]
[BlackClock "0:02:17"]

1. d4 {[%clk 0:02:59]}  Nf6 {[%clk 0:02:59]} 2. c4 {[%clk 0:02:59]}  g6 {[%clk 0:02:59]} 3. Nc3 {[%clk 0:02:59]}  Bg7 {[%clk 0:02:57]} 4. e4 {[%clk 0:02:58]}  O-O {[%clk 0:02:58]} 5. Nf3 {[%clk 0:02:58]}  d6 {[%clk 0:02:58]} 6. Be2 {[%clk 0:02:58]}  e5 {[%clk 0:02:58]} 7. O-O {[%clk 0:02:58]}  Nc6 {[%clk 0:02:59]} 8. d5 {[%clk 0:02:59]}  Ne7 {[%clk 0:02:59]} 9. Ne1 {[%clk 0:02:59]}  Nd7 {[%clk 0:03:00]} 10. Be3 {[%clk 0:02:58]}  f5 {[%clk 0:03:00]} 11. f3 {[%clk 0:02:59]}  f4 {[%clk 0:03:00]} 12. Bf2 {[%clk 0:02:59]}  g5 {[%clk 0:03:00]} 13. Nd3 {[%clk 0:02:59]}  b6 {[%clk 0:02:59]} 14. b4 {[%clk 0:02:59]}  Ng6 {[%clk 0:02:55]} 15. Rc1 {[%clk 0:02:59]}  Rf7 {[%clk 0:02:52]} 16. c5 {[%clk 0:02:59]}  Bf8 {[%clk 0:02:46]} 17. Nb5 {[%clk 0:02:58]}  Nf6 {[%clk 0:02:40]} 18. a4 {[%clk 0:02:57]}  h5 {[%clk 0:02:36]} 19. Na3 {[%clk 0:02:57]}  g4 {[%clk 0:02:35]} 20. Nc4 {[%clk 0:02:53]}  h4 {[%clk 0:02:25]} 21. g3 {[%clk 0:02:49]}  fxg3 {[%clk 0:02:22]} 22. hxg3 {[%clk 0:02:49]}  hxg3 {[%clk 0:02:22]} 23. Bxg3 {[%clk 0:02:49]}  Nh5 {[%clk 0:02:22]} 24. Bf2 {[%clk 0:02:33]}  g3 {[%clk 0:02:22]} 25. f4 {[%clk 0:02:08]}  Qh4 {[%clk 0:02:17]} 0-1


[Site "https://www.chess.com"]

[Event "Titled Tuesday Blitz December 20 Late 2022"]
[White "Denishev, Marat"]
[Black "Ferreira, Vitor Hugo Vieira"]
[WhiteFideId "24131563"]
[BlackFideId "2119765"]
[WhiteElo "2194"]
[BlackElo "2146"]
[Result "1-0"]
[Round "10"]
[TimeControl "180+1"]
[Date "2022.12.21"]
[WhiteClock "0:00:12"]
[BlackClock "0:00:08"]

1. e4 {[%clk 0:03:00]}  c5 {[%clk 0:02:53]} 2. Nf3 {[%clk 0:03:00]}  d6 {[%clk 0:02:54]} 3. d4 {[%clk 0:02:54]}  cxd4 {[%clk 0:02:55]} 4. Nxd4 {[%clk 0:02:53]}  Nf6 {[%clk 0:02:54]} 5. Nc3 {[%clk 0:02:52]}  a6 {[%clk 0:02:54]} 6. Nb3 {[%clk 0:02:46]}  g6 {[%clk 0:02:48]} 7. Be3 {[%clk 0:02:20]}  Bg7 {[%clk 0:02:46]} 8. f3 {[%clk 0:02:20]}  O-O {[%clk 0:02:45]} 9. Qd2 {[%clk 0:02:20]}  b5 {[%clk 0:02:45]} 10. h4 {[%clk 0:02:18]}  h5 {[%clk 0:02:45]} 11. Bh6 {[%clk 0:02:17]}  b4 {[%clk 0:02:44]} 12. Ne2 {[%clk 0:02:11]}  a5 {[%clk 0:02:44]} 13. Bxg7 {[%clk 0:02:09]}  Kxg7 {[%clk 0:02:44]} 14. Nf4 {[%clk 0:02:02]}  a4 {[%clk 0:02:42]} 15. Nc1 {[%clk 0:02:01]}  Nc6 {[%clk 0:02:38]} 16. Ncd3 {[%clk 0:02:00]}  Qb6 {[%clk 0:02:34]} 17. Nd5 {[%clk 0:01:56]}  Nxd5 {[%clk 0:02:33]} 18. exd5 {[%clk 0:01:57]}  Nd4 {[%clk 0:02:32]} 19. Rc1 {[%clk 0:01:53]}  b3 {[%clk 0:02:32]} 20. cxb3 {[%clk 0:01:47]}  axb3 {[%clk 0:02:33]} 21. a3 {[%clk 0:01:47]}  Nc2+ {[%clk 0:02:32]} 22. Kd1 {[%clk 0:01:43]}  Ra5 {[%clk 0:02:12]} 23. Nb4 {[%clk 0:01:31]}  Ne3+ {[%clk 0:01:58]} 24. Ke2 {[%clk 0:01:19]}  Nf5 {[%clk 0:01:58]} 25. Rh3 {[%clk 0:01:12]}  Nd4+ {[%clk 0:01:55]} 26. Kd3 {[%clk 0:00:58]}  Bf5+ {[%clk 0:01:50]} 27. Ke3 {[%clk 0:00:54]}  Bxh3 {[%clk 0:01:14]} 28. Qxd4+ {[%clk 0:00:52]}  Qxd4+ {[%clk 0:01:10]} 29. Kxd4 {[%clk 0:00:53]}  Bf5 {[%clk 0:01:01]} 30. Rc7 {[%clk 0:00:52]}  Kf6 {[%clk 0:00:58]} 31. Bc4 {[%clk 0:00:50]}  Rc8 {[%clk 0:00:57]} 32. Rb7 {[%clk 0:00:43]}  Rac5 {[%clk 0:00:53]} 33. Bxb3 {[%clk 0:00:41]}  e5+ {[%clk 0:00:50]} 34. dxe6 {[%clk 0:00:41]}  fxe6 {[%clk 0:00:49]} 35. Ke3 {[%clk 0:00:37]}  Rc1 {[%clk 0:00:47]} 36. Kf4 {[%clk 0:00:36]}  Rb1 {[%clk 0:00:31]} 37. g4 {[%clk 0:00:33]}  hxg4 {[%clk 0:00:30]} 38. fxg4 {[%clk 0:00:34]}  Rf1+ {[%clk 0:00:30]} 39. Ke3 {[%clk 0:00:24]}  Bxg4 {[%clk 0:00:29]} 40. Nd3 {[%clk 0:00:23]}  Rf3+ {[%clk 0:00:26]} 41. Kd2 {[%clk 0:00:22]}  Bf5 {[%clk 0:00:25]} 42. Nb4 {[%clk 0:00:21]}  Rf2+ {[%clk 0:00:24]} 43. Ke3 {[%clk 0:00:20]}  Rxb2 {[%clk 0:00:23]} 44. Ba4 {[%clk 0:00:20]}  Rc3+ {[%clk 0:00:19]} 45. Kd4 {[%clk 0:00:19]}  Rd3+ {[%clk 0:00:17]} 46. Kc4 {[%clk 0:00:17]}  d5+ {[%clk 0:00:16]} 47. Kc5 {[%clk 0:00:17]}  Rc3+ {[%clk 0:00:13]} 48. Kd6 {[%clk 0:00:17]}  Rh2 {[%clk 0:00:09]} 49. Rh7 {[%clk 0:00:13]}  g5 {[%clk 0:00:07]} 50. hxg5+ {[%clk 0:00:09]}  Kxg5 {[%clk 0:00:05]} 51. Rxh2 {[%clk 0:00:10]}  Rxa3 {[%clk 0:00:04]} 52. Bd7 {[%clk 0:00:08]}  Kf4 {[%clk 0:00:04]} 53. Nc6 {[%clk 0:00:09]}  Kg3 {[%clk 0:00:04]} 54. Rh6 {[%clk 0:00:09]}  Ra6 {[%clk 0:00:04]} 55. Bxe6 {[%clk 0:00:08]}  Bxe6 {[%clk 0:00:04]} 56. Rxe6 {[%clk 0:00:09]}  d4 {[%clk 0:00:04]} 57. Kc5 {[%clk 0:00:09]}  d3 {[%clk 0:00:04]} 58. Rd6 {[%clk 0:00:10]}  Ra3 {[%clk 0:00:03]} 59. Kb4 {[%clk 0:00:09]}  Ra1 {[%clk 0:00:03]} 60. Rxd3+ {[%clk 0:00:09]}  Kf4 {[%clk 0:00:04]} 61. Nd4 {[%clk 0:00:10]}  Rb1+ {[%clk 0:00:04]} 62. Kc3 {[%clk 0:00:10]}  Rb8 {[%clk 0:00:05]} 63. Ne6+ {[%clk 0:00:10]}  Ke5 {[%clk 0:00:05]} 64. Nc5 {[%clk 0:00:11]}  Rc8 {[%clk 0:00:06]} 65. Kc4 {[%clk 0:00:11]}  Rb8 {[%clk 0:00:06]} 66. Nd7+ {[%clk 0:00:11]}  Ke6 {[%clk 0:00:06]} 67. Nxb8 {[%clk 0:00:12]}  Ke7 {[%clk 0:00:07]} 68. Rd5 {[%clk 0:00:11]}  Ke8 {[%clk 0:00:08]} 69. Na6 {[%clk 0:00:12]} 1-0


[Site "https://www.chess.com"]

[Event "Titled Tuesday Blitz December 20 Late 2022"]
[White "Donchenko, Alexander"]
[Black "Shuvalova, Polina"]
[WhiteFideId "24603295"]
[BlackFideId "24171760"]
[WhiteElo "2581"]
[BlackElo "2361"]
[Result "0-1"]
[Round "10"]
[TimeControl "180+1"]
[Date "2022.12.20"]
[WhiteClock "0:00:57"]
[BlackClock "0:00:26"]

1. Nf3 {[%clk 0:03:00]}  Nf6 {[%clk 0:02:59]} 2. c4 {[%clk 0:02:59]}  e6 {[%clk 0:02:59]} 3. g3 {[%clk 0:02:59]}  d5 {[%clk 0:03:00]} 4. Bg2 {[%clk 0:03:00]}  Be7 {[%clk 0:03:00]} 5. d4 {[%clk 0:02:59]}  O-O {[%clk 0:02:59]} 6. Nc3 {[%clk 0:03:00]}  Nbd7 {[%clk 0:02:55]} 7. O-O {[%clk 0:02:57]}  dxc4 {[%clk 0:02:53]} 8. e4 {[%clk 0:02:54]}  b5 {[%clk 0:02:49]} 9. d5 {[%clk 0:02:48]}  exd5 {[%clk 0:02:38]} 10. e5 {[%clk 0:02:48]}  c6 {[%clk 0:02:34]} 11. exf6 {[%clk 0:02:48]}  Bxf6 {[%clk 0:02:33]} 12. Nd4 {[%clk 0:02:40]}  Bb7 {[%clk 0:02:26]} 13. Re1 {[%clk 0:02:12]}  Ne5 {[%clk 0:02:17]} 14. Re3 {[%clk 0:01:59]}  a6 {[%clk 0:02:06]} 15. b4 {[%clk 0:01:52]}  Nd3 {[%clk 0:01:57]} 16. Rxd3 {[%clk 0:01:51]}  cxd3 {[%clk 0:01:57]} 17. Qxd3 {[%clk 0:01:51]}  a5 {[%clk 0:01:54]} 18. Ba3 {[%clk 0:01:51]}  Qb6 {[%clk 0:01:47]} 19. Nb3 {[%clk 0:01:40]}  axb4 {[%clk 0:01:23]} 20. Bxb4 {[%clk 0:01:41]}  Rfe8 {[%clk 0:01:23]} 21. Bc5 {[%clk 0:01:35]}  Qc7 {[%clk 0:01:21]} 22. Nd4 {[%clk 0:01:30]}  Be7 {[%clk 0:00:57]} 23. Bxe7 {[%clk 0:01:29]}  Qxe7 {[%clk 0:00:56]} 24. Nb3 {[%clk 0:01:23]}  b4 {[%clk 0:00:49]} 25. Nd1 {[%clk 0:01:11]}  Qe1+ {[%clk 0:00:49]} 26. Qf1 {[%clk 0:01:06]}  Ba6 {[%clk 0:00:48]} 27. Ne3 {[%clk 0:01:07]}  Bxf1 {[%clk 0:00:43]} 28. Rxe1 {[%clk 0:01:06]}  Bxg2 {[%clk 0:00:43]} 29. Kxg2 {[%clk 0:01:04]}  Rxa2 {[%clk 0:00:44]} 30. Rc1 {[%clk 0:01:04]}  Rxe3 {[%clk 0:00:30]} 31. Rxc6 {[%clk 0:01:01]}  g6 {[%clk 0:00:28]} 32. Nc1 {[%clk 0:00:59]}  Rb2 {[%clk 0:00:27]} 33. Rd6 {[%clk 0:00:57]}  Rc3 {[%clk 0:00:26]} 0-1


[Site "https://www.chess.com"]